[Event "*** Biggest EVER Titled Tuesday"]
[Site "Chess.com"]
[Date "2018.04.17"]
[Round "3"]
[White "sergiochess83"]
[Black "tigra"]
[Result "1-0"]
[WhiteElo "2782"]
[BlackElo "2680"]
[TimeControl "180+2"]
[EndTime "13:35:59 PDT"]
[Termination "sergiochess83 won on time"]

1. c4 {[%clk 0:02:58.2]} 1... Nf6 {[%clk 0:02:59.7]} 2. Nc3 {[%clk 0:02:58.7]}
2... g6 {[%clk 0:02:59.9]} 3. e4 {[%clk 0:02:56.9]} 3... e5 {[%clk 0:02:59.4]}
4. Nf3 {[%clk 0:02:56.1]} 4... Nc6 {[%clk 0:02:59.4]} 5. d4 {[%clk 0:02:53.2]}
5... exd4 {[%clk 0:03:00.5]} 6. Nxd4 {[%clk 0:02:55.1]} 6... Bb4 {[%clk
0:03:01.5]} 7. Bg5 {[%clk 0:02:45.3]} 7... h6 {[%clk 0:02:58.6]} 8. Nxc6 {[%clk
0:02:45.9]} 8... bxc6 {[%clk 0:02:58.4]} 9. Bd2 {[%clk 0:02:46.9]} 9... Qe7
{[%clk 0:02:55.4]} 10. Bd3 {[%clk 0:02:45.6]} 10... Ba6 {[%clk 0:02:52]} 11. O-O
{[%clk 0:02:44.3]} 11... Rb8 {[%clk 0:02:42.8]} 12. e5 {[%clk 0:02:36.6]} 12...
Nh5 {[%clk 0:02:43.3]} 13. Re1 {[%clk 0:02:27.5]} 13... Kd8 {[%clk 0:02:11.3]}
14. Qg4 {[%clk 0:02:21.6]} 14... Ng7 {[%clk 0:01:51.9]} 15. Rad1 {[%clk
0:02:20.7]} 15... Ne6 {[%clk 0:01:51.8]} 16. a3 {[%clk 0:01:56.5]} 16... h5
{[%clk 0:01:52.6]} 17. Qg3 {[%clk 0:01:52.2]} 17... h4 {[%clk 0:01:51.1]} 18.
Qg4 {[%clk 0:01:52.7]} 18... Bxc3 {[%clk 0:01:51.7]} 19. Bxc3 {[%clk 0:01:46.8]}
19... h3 {[%clk 0:01:52.5]} 20. g3 {[%clk 0:01:47.2]} 20... Kc8 {[%clk
0:01:42.4]} 21. Bf1 {[%clk 0:01:45]} 21... Rb3 {[%clk 0:01:39.2]} 22. Bxh3
{[%clk 0:01:37.1]} 22... Rxh3 {[%clk 0:01:37.5]} 23. Qxh3 {[%clk 0:01:37.6]}
23... Bxc4 {[%clk 0:01:39]} 24. Qh8+ {[%clk 0:01:19.3]} 24... Kb7 {[%clk
0:01:39.4]} 25. Qf6 {[%clk 0:01:20.3]} 25... Qxf6 {[%clk 0:01:15.3]} 26. exf6
{[%clk 0:01:21.1]} 26... c5 {[%clk 0:01:16.4]} 27. Rxd7 {[%clk 0:01:16.5]} 27...
Ng5 {[%clk 0:01:16.6]} 28. Re3 {[%clk 0:01:14.5]} 28... Kc6 {[%clk 0:01:13.1]}
29. Rd8 {[%clk 0:01:05.6]} 29... Ne6 {[%clk 0:01:06]} 30. Re8 {[%clk 0:00:59.2]}
30... Kd6 {[%clk 0:00:43.7]} 31. Be5+ {[%clk 0:00:56.2]} 31... Kd5 {[%clk
0:00:41.9]} 32. Rxb3 {[%clk 0:00:57]} 32... Bxb3 {[%clk 0:00:43.4]} 33. Bc3
{[%clk 0:00:54.8]} 33... Nd4 {[%clk 0:00:33.6]} 34. h4 {[%clk 0:00:51.7]} 34...
Nc6 {[%clk 0:00:24.7]} 35. f3 {[%clk 0:00:37.9]} 35... Bc2 {[%clk 0:00:18.7]}
36. g4 {[%clk 0:00:38.1]} 36... Bd1 {[%clk 0:00:19.7]} 37. Kf2 {[%clk
0:00:38.8]} 37... Bc2 {[%clk 0:00:20.4]} 38. h5 {[%clk 0:00:34.6]} 38... gxh5
{[%clk 0:00:20.8]} 39. gxh5 {[%clk 0:00:36.5]} 39... a5 {[%clk 0:00:22]} 40. h6
{[%clk 0:00:36.9]} 40... Bf5 {[%clk 0:00:22.1]} 41. Re7 {[%clk 0:00:30.7]} 41...
Bg6 {[%clk 0:00:13.5]} 42. Rxf7 {[%clk 0:00:29.7]} 42... Nd8 {[%clk 0:00:14.3]}
43. Rd7+ {[%clk 0:00:29.1]} 1-0

[Event "*** Biggest EVER Titled Tuesday"]
[Site "Chess.com"]
[Date "2018.04.17"]
[Round "3"]
[White "Goala"]
[Black "MateusViageiro"]
[Result "0-1"]
[WhiteElo "2306"]
[BlackElo "2226"]
[TimeControl "180+2"]
[EndTime "13:36:01 PDT"]
[Termination "MateusViageiro won by resignation"]

1. d4 {[%clk 0:02:58]} 1... Nf6 {[%clk 0:03:00.2]} 2. c4 {[%clk 0:02:59.4]} 2...
e6 {[%clk 0:03:00.4]} 3. Nf3 {[%clk 0:03:00.4]} 3... b6 {[%clk 0:02:59.2]} 4. g3
{[%clk 0:03:01]} 4... Bb7 {[%clk 0:02:58.8]} 5. Bg2 {[%clk 0:03:01.1]} 5... Bb4+
{[%clk 0:02:59.6]} 6. Nbd2 {[%clk 0:02:58.4]} 6... O-O {[%clk 0:02:59.5]} 7. O-O
{[%clk 0:02:59.8]} 7... Ne4 {[%clk 0:02:49.8]} 8. Qc2 {[%clk 0:03:00.4]} 8...
Nxd2 {[%clk 0:02:48]} 9. Bxd2 {[%clk 0:03:00.5]} 9... Bxd2 {[%clk 0:02:43]} 10.
Qxd2 {[%clk 0:03:02.4]} 10... d6 {[%clk 0:02:39.8]} 11. Rac1 {[%clk 0:02:59.6]}
11... Nd7 {[%clk 0:02:40.1]} 12. b4 {[%clk 0:02:59.8]} 12... c5 {[%clk
0:02:31.1]} 13. a3 {[%clk 0:02:42.7]} 13... Rc8 {[%clk 0:02:25.6]} 14. Rfd1
{[%clk 0:02:41.2]} 14... Nf6 {[%clk 0:02:19.4]} 15. Qd3 {[%clk 0:02:29.1]} 15...
Qe7 {[%clk 0:02:15.1]} 16. h3 {[%clk 0:01:39.2]} 16... Rfd8 {[%clk 0:02:12.7]}
17. Qe3 {[%clk 0:01:36.6]} 17... cxd4 {[%clk 0:01:41.9]} 18. Qxd4 {[%clk
0:01:34.3]} 18... e5 {[%clk 0:01:23.4]} 19. Qe3 {[%clk 0:01:33.6]} 19... h6
{[%clk 0:01:11.6]} 20. Ne1 {[%clk 0:01:33.8]} 20... Bxg2 {[%clk 0:01:06.9]} 21.
Nxg2 {[%clk 0:01:35.7]} 21... Qe6 {[%clk 0:01:04.3]} 22. Qd3 {[%clk 0:01:30.3]}
22... Qxh3 {[%clk 0:01:03.8]} 23. Ne3 {[%clk 0:01:27.9]} 23... e4 {[%clk
0:00:51.5]} 24. Qd4 {[%clk 0:01:24.6]} 24... h5 {[%clk 0:00:52.1]} 25. c5 {[%clk
0:00:22.8]} 25... h4 {[%clk 0:00:40.4]} 26. gxh4 {[%clk 0:00:23.2]} 26... bxc5
{[%clk 0:00:32.3]} 27. bxc5 {[%clk 0:00:23.6]} 27... dxc5 {[%clk 0:00:23.2]} 28.
Qxd8+ {[%clk 0:00:24]} 28... Rxd8 {[%clk 0:00:25.1]} 29. Rxd8+ {[%clk
0:00:25.1]} 29... Kh7 {[%clk 0:00:26.6]} 30. Rxc5 {[%clk 0:00:26.1]} 30... Qxh4
{[%clk 0:00:21.8]} 31. Rcc8 {[%clk 0:00:23.3]} 31... Kg6 {[%clk 0:00:21.6]} 32.
Rc5 {[%clk 0:00:20.6]} 32... Nh5 {[%clk 0:00:21]} 33. Rd6+ {[%clk 0:00:14.4]}
33... f6 {[%clk 0:00:21.6]} 34. Nf5 {[%clk 0:00:15.4]} 34... Qg5+ {[%clk
0:00:21.3]} 35. Kf1 {[%clk 0:00:13.4]} 35... Qg4 {[%clk 0:00:22.5]} 36. Ne3
{[%clk 0:00:06.8]} 36... Qh3+ {[%clk 0:00:23.1]} 37. Ke1 {[%clk 0:00:08.4]}
37... Nf4 {[%clk 0:00:24.7]} 38. Rd7 {[%clk 0:00:05.4]} 38... Qxd7 {[%clk
0:00:22.3]} 0-1

[Event "*** Biggest EVER Titled Tuesday"]
[Site "Chess.com"]
[Date "2018.04.17"]
[Round "3"]
[White "PenguinPacks"]
[Black "omer1997"]
[Result "1/2-1/2"]
[WhiteElo "2153"]
[BlackElo "2075"]
[TimeControl "180+2"]
[EndTime "13:36:05 PDT"]
[Termination "Game drawn - insufficient material"]

1. d4 {[%clk 0:03:01.6]} 1... d5 {[%clk 0:03:00.6]} 2. c4 {[%clk 0:02:54.7]}
2... c6 {[%clk 0:03:00]} 3. Nf3 {[%clk 0:02:54.6]} 3... Nf6 {[%clk 0:03:00]} 4.
Nc3 {[%clk 0:02:55.1]} 4... dxc4 {[%clk 0:03:00.6]} 5. a4 {[%clk 0:02:55.5]}
5... Bf5 {[%clk 0:03:01]} 6. e3 {[%clk 0:02:56.4]} 6... e6 {[%clk 0:03:02.1]} 7.
Bxc4 {[%clk 0:02:57.7]} 7... Nbd7 {[%clk 0:03:03.4]} 8. Qe2 {[%clk 0:02:59.1]}
8... Bb4 {[%clk 0:02:59.6]} 9. O-O {[%clk 0:02:59.2]} 9... Bg4 {[%clk
0:02:59.3]} 10. h3 {[%clk 0:03:00]} 10... Bxf3 {[%clk 0:03:00.1]} 11. Qxf3
{[%clk 0:03:01.9]} 11... O-O {[%clk 0:03:00.2]} 12. Rd1 {[%clk 0:02:18.7]} 12...
Rc8 {[%clk 0:02:59.2]} 13. e4 {[%clk 0:02:19.3]} 13... e5 {[%clk 0:02:59.3]} 14.
Bg5 {[%clk 0:01:52.3]} 14... Qa5 {[%clk 0:02:47.5]} 15. Qg3 {[%clk 0:01:32.2]}
15... exd4 {[%clk 0:02:16.4]} 16. Rxd4 {[%clk 0:01:28.2]} 16... Qe5 {[%clk
0:01:28.8]} 17. Qxe5 {[%clk 0:01:11.4]} 17... Nxe5 {[%clk 0:01:30.7]} 18. Bxf6
{[%clk 0:00:59.3]} 18... gxf6 {[%clk 0:01:31.6]} 19. Bxf7+ {[%clk 0:01:00.4]}
19... Rxf7 {[%clk 0:01:29]} 20. Rxb4 {[%clk 0:01:02.3]} 20... Nd3 {[%clk
0:01:22.7]} 21. Rd4 {[%clk 0:00:34.8]} 21... Nc5 {[%clk 0:01:23.3]} 22. Rad1
{[%clk 0:00:30.3]} 22... a5 {[%clk 0:01:21.8]} 23. Rc4 {[%clk 0:00:19.5]} 23...
Ne6 {[%clk 0:01:19.3]} 24. Rd6 {[%clk 0:00:19.2]} 24... Re8 {[%clk 0:01:17.4]}
25. b4 {[%clk 0:00:19.2]} 25... axb4 {[%clk 0:01:13.8]} 26. Rxb4 {[%clk
0:00:21.1]} 26... Rfe7 {[%clk 0:01:07.3]} 27. f3 {[%clk 0:00:21.5]} 27... h5
{[%clk 0:01:00.5]} 28. Rb6 {[%clk 0:00:20.9]} 28... Kf7 {[%clk 0:01:00.4]} 29.
a5 {[%clk 0:00:20.4]} 29... Ra8 {[%clk 0:00:59.4]} 30. a6 {[%clk 0:00:19.5]}
30... Rxa6 {[%clk 0:00:55.4]} 31. Rxa6 {[%clk 0:00:20.4]} 31... bxa6 {[%clk
0:00:57.3]} 32. Rxc6 {[%clk 0:00:21.9]} 32... Rc7 {[%clk 0:00:58.6]} 33. Rxc7+
{[%clk 0:00:20.6]} 33... Nxc7 {[%clk 0:01:00.5]} 34. Kf2 {[%clk 0:00:22.1]}
34... Ke6 {[%clk 0:00:56.1]} 35. Ke3 {[%clk 0:00:21.5]} 35... f5 {[%clk
0:00:49.9]} 36. exf5+ {[%clk 0:00:20.7]} 36... Kxf5 {[%clk 0:00:51.8]} 37. g4+
{[%clk 0:00:22.2]} 37... Kg5 {[%clk 0:00:52.1]} 38. Ne4+ {[%clk 0:00:22.2]}
38... Kh4 {[%clk 0:00:52.6]} 39. Nf2 {[%clk 0:00:23.5]} 39... hxg4 {[%clk
0:00:50]} 40. hxg4 {[%clk 0:00:24.4]} 40... a5 {[%clk 0:00:50]} 41. Nd3 {[%clk
0:00:25.5]} 41... a4 {[%clk 0:00:50.9]} 42. Nb4 {[%clk 0:00:24.1]} 42... a3
{[%clk 0:00:52]} 43. Kd4 {[%clk 0:00:22.6]} 43... Kg3 {[%clk 0:00:46.2]} 44. Ke4
{[%clk 0:00:21.1]} 44... Kh4 {[%clk 0:00:37.2]} 45. Kf5 {[%clk 0:00:21.9]} 45...
Nd5 {[%clk 0:00:35.9]} 46. Na2 {[%clk 0:00:21.6]} 46... Ne3+ {[%clk 0:00:35.5]}
47. Kf6 {[%clk 0:00:19.7]} 47... Nxg4+ {[%clk 0:00:25.6]} 48. fxg4 {[%clk
0:00:20.6]} 48... Kxg4 {[%clk 0:00:27.5]} 49. Ke5 {[%clk 0:00:22]} 49... Kf3
{[%clk 0:00:29]} 50. Kd4 {[%clk 0:00:23.6]} 50... Ke2 {[%clk 0:00:30.9]} 51. Kc3
{[%clk 0:00:25]} 51... Ke3 {[%clk 0:00:31.6]} 52. Kb3 {[%clk 0:00:26.9]} 52...
Kd4 {[%clk 0:00:33.4]} 53. Kxa3 {[%clk 0:00:28.7]} 1/2-1/2

[Event "*** Biggest EVER Titled Tuesday"]
[Site "Chess.com"]
[Date "2018.04.17"]
[Round "3"]
[White "belisarius64"]
[Black "champ2005"]
[Result "0-1"]
[WhiteElo "2498"]
[BlackElo "2609"]
[TimeControl "180+2"]
[EndTime "13:36:12 PDT"]
[Termination "champ2005 won by resignation"]

1. e4 {[%clk 0:03:01.5]} 1... c6 {[%clk 0:02:58.9]} 2. Nc3 {[%clk 0:03:01.4]}
2... d5 {[%clk 0:03:00]} 3. Nf3 {[%clk 0:03:03.3]} 3... dxe4 {[%clk 0:03:00.9]}
4. Nxe4 {[%clk 0:03:05.2]} 4... Nf6 {[%clk 0:03:02.3]} 5. Bd3 {[%clk 0:03:02.3]}
5... Nxe4 {[%clk 0:02:58.7]} 6. Bxe4 {[%clk 0:03:04.2]} 6... Nd7 {[%clk
0:03:00.3]} 7. d4 {[%clk 0:03:05]} 7... Nf6 {[%clk 0:03:01.5]} 8. Bd3 {[%clk
0:03:06.6]} 8... Bg4 {[%clk 0:03:02.2]} 9. c3 {[%clk 0:03:05.7]} 9... e6 {[%clk
0:03:03.4]} 10. O-O {[%clk 0:03:06.5]} 10... Bd6 {[%clk 0:03:03.5]} 11. h3
{[%clk 0:03:08]} 11... Bh5 {[%clk 0:03:03.2]} 12. Be2 {[%clk 0:03:09.4]} 12...
O-O {[%clk 0:03:03.7]} 13. Ne5 {[%clk 0:03:09.9]} 13... Bxe2 {[%clk 0:03:01.1]}
14. Qxe2 {[%clk 0:03:11.8]} 14... Qc7 {[%clk 0:03:01.5]} 15. Re1 {[%clk
0:03:12.1]} 15... Nd7 {[%clk 0:03:02.1]} 16. Nc4 {[%clk 0:03:05.7]} 16... Be7
{[%clk 0:03:01.7]} 17. Qf3 {[%clk 0:03:05]} 17... Nb6 {[%clk 0:03:00.9]} 18. Bf4
{[%clk 0:03:05.6]} 18... Qd8 {[%clk 0:02:59.9]} 19. Ne5 {[%clk 0:03:06.4]} 19...
Qd5 {[%clk 0:03:00.8]} 20. Qg3 {[%clk 0:03:06.5]} 20... Rfe8 {[%clk 0:02:51]}
21. Bh6 {[%clk 0:03:02.4]} 21... Bf8 {[%clk 0:02:51.9]} 22. Ng4 {[%clk
0:02:35.3]} 22... Kh8 {[%clk 0:02:49.3]} 23. Re5 {[%clk 0:02:28.8]} 23... Qd7
{[%clk 0:02:32.2]} 24. Rg5 {[%clk 0:02:25.9]} 24... Qe7 {[%clk 0:02:06.8]} 25.
Ne3 {[%clk 0:01:07.1]} 25... f6 {[%clk 0:02:04.8]} 26. Rg4 {[%clk 0:01:08.4]}
26... f5 {[%clk 0:02:05.5]} 27. Rg5 {[%clk 0:01:07]} 27... Qf7 {[%clk
0:02:05.7]} 28. Qe5 {[%clk 0:00:26.8]} 28... Nd7 {[%clk 0:02:01.4]} 29. Qc7
{[%clk 0:00:27.9]} 29... gxh6 {[%clk 0:02:00.1]} 30. Rg3 {[%clk 0:00:29.5]}
30... Rab8 {[%clk 0:01:39.7]} 31. Rf3 {[%clk 0:00:25.1]} 31... Rec8 {[%clk
0:01:37.9]} 32. Qf4 {[%clk 0:00:24.4]} 32... Bg7 {[%clk 0:01:34.9]} 33. Nc4
{[%clk 0:00:25.2]} 33... Rg8 {[%clk 0:01:33.6]} 34. Re1 {[%clk 0:00:24]} 34...
Rbf8 {[%clk 0:00:53.4]} 35. Rfe3 {[%clk 0:00:23]} 35... e5 {[%clk 0:00:50.5]}
36. dxe5 {[%clk 0:00:21.7]} 36... Qe6 {[%clk 0:00:49.5]} 37. Rd1 {[%clk
0:00:23]} 37... Nb6 {[%clk 0:00:50.2]} 38. Nd6 {[%clk 0:00:22]} 38... Nd5 {[%clk
0:00:49]} 39. Qc4 {[%clk 0:00:23]} 39... Qe7 {[%clk 0:00:44.1]} 40. Re2 {[%clk
0:00:23.2]} 40... f4 {[%clk 0:00:45.2]} 41. Qe4 {[%clk 0:00:23.2]} 41... f3
{[%clk 0:00:45.7]} 42. Ree1 {[%clk 0:00:23.2]} 42... Rf4 {[%clk 0:00:46]} 43.
Qd3 {[%clk 0:00:15.3]} 43... Bxe5 {[%clk 0:00:43.3]} 44. Nc4 {[%clk 0:00:10.1]}
44... Rxg2+ {[%clk 0:00:44]} 45. Kf1 {[%clk 0:00:07.7]} 45... Qg7 {[%clk
0:00:42.1]} 46. Qxf3 {[%clk 0:00:03.2]} 46... Rxf3 {[%clk 0:00:41]} 47. Rxe5
{[%clk 0:00:04.7]} 47... Rgxf2+ {[%clk 0:00:40.4]} 0-1

[Event "*** Biggest EVER Titled Tuesday"]
[Site "Chess.com"]
[Date "2018.04.17"]
[Round "3"]
[White "Kislov_Oleg"]
[Black "vuqaresedli"]
[Result "0-1"]
[WhiteElo "2263"]
[BlackElo "2331"]
[TimeControl "180+2"]
[EndTime "13:36:13 PDT"]
[Termination "vuqaresedli won by resignation"]

1. e4 {[%clk 0:03:01]} 1... e5 {[%clk 0:02:59.8]} 2. Nf3 {[%clk 0:03:01.7]} 2...
Nc6 {[%clk 0:03:00.9]} 3. d4 {[%clk 0:03:02.6]} 3... exd4 {[%clk 0:03:01]} 4.
Nxd4 {[%clk 0:03:04.2]} 4... Bb4+ {[%clk 0:02:59.8]} 5. c3 {[%clk 0:03:04.7]}
5... Bc5 {[%clk 0:03:00.7]} 6. Be3 {[%clk 0:03:05.4]} 6... Bb6 {[%clk
0:03:01.7]} 7. Bc4 {[%clk 0:03:00.7]} 7... Nf6 {[%clk 0:02:54.4]} 8. Nxc6 {[%clk
0:02:57.9]} 8... bxc6 {[%clk 0:02:48]} 9. e5 {[%clk 0:02:58.9]} 9... Nd5 {[%clk
0:02:48.5]} 10. Bxd5 {[%clk 0:02:44.3]} 10... cxd5 {[%clk 0:02:48]} 11. Qg4
{[%clk 0:02:45.1]} 11... Kf8 {[%clk 0:02:22.2]} 12. O-O {[%clk 0:02:44.8]} 12...
h5 {[%clk 0:02:19.5]} 13. Qf3 {[%clk 0:02:38.1]} 13... Bb7 {[%clk 0:02:18.8]}
14. Nd2 {[%clk 0:01:55.4]} 14... Qe7 {[%clk 0:02:18.9]} 15. Nb3 {[%clk
0:01:43.8]} 15... h4 {[%clk 0:02:12.2]} 16. h3 {[%clk 0:01:42.6]} 16... c5
{[%clk 0:02:06.8]} 17. Bf4 {[%clk 0:01:32.9]} 17... Qe6 {[%clk 0:02:04.7]} 18.
Rad1 {[%clk 0:01:30.6]} 18... Bc6 {[%clk 0:02:02.9]} 19. Qe3 {[%clk 0:01:29]}
19... Qe7 {[%clk 0:01:57.8]} 20. Bg5 {[%clk 0:01:26.5]} 20... f6 {[%clk
0:01:54.4]} 21. exf6 {[%clk 0:01:17.5]} 21... gxf6 {[%clk 0:01:54.7]} 22. Qxe7+
{[%clk 0:01:08.8]} 22... Kxe7 {[%clk 0:01:55.2]} 23. Rfe1+ {[%clk 0:01:10.4]}
23... Kf7 {[%clk 0:01:55.9]} 24. Be3 {[%clk 0:01:10.6]} 24... d6 {[%clk
0:01:56]} 25. Bf4 {[%clk 0:01:11.7]} 25... Rad8 {[%clk 0:01:50.9]} 26. f3 {[%clk
0:01:06.8]} 26... Rhg8 {[%clk 0:01:48.8]} 27. Kf2 {[%clk 0:01:07.8]} 27... Rg6
{[%clk 0:01:49.4]} 28. Re3 {[%clk 0:01:05.5]} 28... Rdg8 {[%clk 0:01:46.3]} 29.
Rg1 {[%clk 0:01:01.2]} 29... f5 {[%clk 0:01:46]} 30. Re2 {[%clk 0:00:59]} 30...
a5 {[%clk 0:01:45.5]} 31. Be3 {[%clk 0:00:43]} 31... a4 {[%clk 0:01:45.3]} 32.
Nc1 {[%clk 0:00:43.1]} 32... d4 {[%clk 0:01:45.3]} 33. Bf4 {[%clk 0:00:39.2]}
33... c4 {[%clk 0:01:31.7]} 34. cxd4 {[%clk 0:00:39.7]} 34... Bxd4+ {[%clk
0:01:32.7]} 35. Be3 {[%clk 0:00:40.8]} 35... Be5 {[%clk 0:01:33.2]} 36. Rc2
{[%clk 0:00:39]} 36... f4 {[%clk 0:01:30.2]} 37. Ba7 {[%clk 0:00:31.9]} 37...
Ra8 {[%clk 0:01:29.7]} 38. Rxc4 {[%clk 0:00:33]} 38... Rxa7 {[%clk 0:01:29.8]}
39. Rxc6 {[%clk 0:00:33.7]} 39... Bd4+ {[%clk 0:01:31.3]} 40. Kf1 {[%clk
0:00:35]} 40... Bxg1 {[%clk 0:01:32.5]} 41. Kxg1 {[%clk 0:00:36.1]} 41... d5
{[%clk 0:01:20.7]} 42. Rc5 {[%clk 0:00:30.3]} 42... Rd6 {[%clk 0:01:20.4]} 43.
Kf2 {[%clk 0:00:30.5]} 43... Ke6 {[%clk 0:01:20]} 44. Nd3 {[%clk 0:00:31]} 44...
Kf5 {[%clk 0:01:21.1]} 45. Rb5 {[%clk 0:00:27.6]} 45... Rc7 {[%clk 0:01:20.7]}
46. Rb4 {[%clk 0:00:28.3]} 46... Rc2+ {[%clk 0:01:20.9]} 47. Kf1 {[%clk
0:00:29.3]} 47... Rd2 {[%clk 0:01:18.1]} 48. Rxf4+ {[%clk 0:00:23.7]} 48... Ke6
{[%clk 0:01:17.2]} 49. Rd4 {[%clk 0:00:23.4]} 49... Ke7 {[%clk 0:01:13.8]} 50.
Ke1 {[%clk 0:00:20.1]} 50... Rxg2 {[%clk 0:01:13.8]} 51. Rxh4 {[%clk 0:00:19.1]}
51... Re6+ {[%clk 0:01:15.1]} 52. Kd1 {[%clk 0:00:19.8]} 52... Re3 {[%clk
0:01:16.3]} 53. Rd4 {[%clk 0:00:20.4]} 53... Rxf3 {[%clk 0:01:14.9]} 54. Rxd5
{[%clk 0:00:20.3]} 54... Rf1+ {[%clk 0:01:13.3]} 55. Ne1 {[%clk 0:00:21.3]}
55... Rxb2 {[%clk 0:01:14.1]} 56. Rd2 {[%clk 0:00:17.2]} 56... Rb1+ {[%clk
0:01:13.3]} 57. Kc2 {[%clk 0:00:18.2]} 57... Rfxe1 {[%clk 0:01:13.7]} 0-1

[Event "*** Biggest EVER Titled Tuesday"]
[Site "Chess.com"]
[Date "2018.04.17"]
[Round "3"]
[White "underdogchss"]
[Black "GoingKronos"]
[Result "0-1"]
[WhiteElo "2375"]
[BlackElo "2387"]
[TimeControl "180+2"]
[EndTime "13:36:13 PDT"]
[Termination "GoingKronos won by resignation"]

1. d4 {[%clk 0:03:01.9]} 1... Nf6 {[%clk 0:03:00.4]} 2. Nf3 {[%clk 0:03:00.8]}
2... e6 {[%clk 0:03:00.9]} 3. c4 {[%clk 0:03:01.4]} 3... c5 {[%clk 0:03:01.6]}
4. d5 {[%clk 0:03:01.8]} 4... d6 {[%clk 0:03:02.8]} 5. Nc3 {[%clk 0:03:02.1]}
5... exd5 {[%clk 0:03:04.1]} 6. cxd5 {[%clk 0:03:02.7]} 6... g6 {[%clk
0:03:05.5]} 7. Bf4 {[%clk 0:03:02.8]} 7... Bg7 {[%clk 0:03:06.4]} 8. h3 {[%clk
0:02:54.3]} 8... O-O {[%clk 0:03:01.5]} 9. e3 {[%clk 0:02:55.3]} 9... Na6 {[%clk
0:02:59]} 10. Be2 {[%clk 0:02:48.7]} 10... Nc7 {[%clk 0:02:58.7]} 11. a4 {[%clk
0:02:49.1]} 11... b6 {[%clk 0:02:37.3]} 12. O-O {[%clk 0:02:48.2]} 12... a6
{[%clk 0:02:38.6]} 13. e4 {[%clk 0:02:31.1]} 13... Re8 {[%clk 0:00:48.7]} 14.
Nd2 {[%clk 0:02:21.8]} 14... Rb8 {[%clk 0:00:44]} 15. Nc4 {[%clk 0:01:45.1]}
15... Nxe4 {[%clk 0:00:44.4]} 16. Nxe4 {[%clk 0:01:45.5]} 16... Rxe4 {[%clk
0:00:45.6]} 17. Bxd6 {[%clk 0:01:47.4]} 17... b5 {[%clk 0:00:43.7]} 18. Bxc7
{[%clk 0:01:42.2]} 18... Qxc7 {[%clk 0:00:44.9]} 19. axb5 {[%clk 0:01:41.6]}
19... axb5 {[%clk 0:00:46.3]} 20. d6 {[%clk 0:01:29.4]} 20... Qd7 {[%clk
0:00:46.3]} 21. Ne3 {[%clk 0:00:35]} 21... Rd4 {[%clk 0:00:46.7]} 22. Qc2 {[%clk
0:00:35.5]} 22... Qxd6 {[%clk 0:00:47]} 23. Rfd1 {[%clk 0:00:35.5]} 23... Be6
{[%clk 0:00:47.5]} 24. Rac1 {[%clk 0:00:27.3]} 24... c4 {[%clk 0:00:46.6]} 25.
Rxd4 {[%clk 0:00:25]} 25... Qxd4 {[%clk 0:00:47.7]} 26. Rd1 {[%clk 0:00:25.7]}
26... Qc5 {[%clk 0:00:48.6]} 27. Bg4 {[%clk 0:00:18.7]} 27... Bxg4 {[%clk
0:00:48.1]} 28. hxg4 {[%clk 0:00:19.7]} 28... Re8 {[%clk 0:00:46.7]} 29. Rd5
{[%clk 0:00:16.4]} 29... Qc6 {[%clk 0:00:47.5]} 30. Qd2 {[%clk 0:00:16.8]} 30...
b4 {[%clk 0:00:39.3]} 31. Qxb4 {[%clk 0:00:13.9]} 31... Rxe3 {[%clk 0:00:33.7]}
32. Rd8+ {[%clk 0:00:09]} 32... Re8 {[%clk 0:00:33.7]} 33. Rxe8+ {[%clk
0:00:04.7]} 33... Qxe8 {[%clk 0:00:34.6]} 34. Qxc4 {[%clk 0:00:06.6]} 34... Bxb2
{[%clk 0:00:30.8]} 35. g3 {[%clk 0:00:07.7]} 35... Bf6 {[%clk 0:00:27.6]} 36.
Kg2 {[%clk 0:00:08.6]} 36... Qe5 {[%clk 0:00:27.2]} 37. Kg1 {[%clk 0:00:09.2]}
37... Kg7 {[%clk 0:00:28.1]} 38. Kg2 {[%clk 0:00:10.3]} 38... Qe6 {[%clk
0:00:27.6]} 39. Qa4 {[%clk 0:00:08.6]} 39... Qd5+ {[%clk 0:00:28]} 40. Kg1
{[%clk 0:00:09.2]} 40... Bd4 {[%clk 0:00:27.3]} 41. Kf1 {[%clk 0:00:08.6]} 41...
Qh1+ {[%clk 0:00:23.3]} 42. Ke2 {[%clk 0:00:09.4]} 42... Qe4+ {[%clk 0:00:24.8]}
43. Kf1 {[%clk 0:00:10.6]} 43... Qxg4 {[%clk 0:00:23.8]} 44. Qc4 {[%clk
0:00:09.2]} 44... Qe4 {[%clk 0:00:23.1]} 0-1